bitfinex/quotes_BTCUSD_20250615
["timestamp","ask_amount","ask_price","bid_price","bid_amount"]
[1749986083712,0.0316,105270.0,105250.0,0.13678885]
[1749986083960,0.0316,105270.0,105260.0,0.1926]
[1749986084215,0.0316,105270.0,105260.0,0.21036578]
[1749986084433,0.060152,105270.0,105260.0,0.21036604]
[1749986084656,0.03487195,105270.0,105260.0,0.21036595]
[1749986084853,0.060152,105270.0,105260.0,0.21036591]
[1749986085097,0.060152,105270.0,105260.0,0.1926]
[1749986085565,0.045152,105270.0,105260.0,0.1926]
[1749986085775,0.045152,105270.0,105260.0,0.05696566]
[1749986085994,0.060152,105270.0,105260.0,0.05696566]
[1749986086220,0.06617195,105270.0,105260.0,0.0392]
[1749986086475,0.06617195,105270.0,105260.0,0.0402]
[1749986086748,0.06617195,105270.0,105260.0,0.05796646]
[1749986086962,0.06617195,105270.0,105260.0,0.05796643]
[1749986087165,0.06617195,105270.0,105260.0,0.05796644]
[1749986087380,0.06617195,105270.0,105260.0,0.05796762]
[1749986087621,0.06617195,105270.0,105260.0,0.0402]
[1749986087830,0.40617195,105270.0,105260.0,0.0402]
[1749986088049,0.40617195,105270.0,105260.0,0.05796859]
[1749986088465,0.40617195,105270.0,105260.0,0.05696859]
[1749986088668,0.40817195,105270.0,105260.0,0.0392]
[1749986088858,0.40917195,105270.0,105260.0,0.05696853]
[1749986088985,0.40717195,105270.0,105260.0,0.0392]
[1749986089199,0.06817195,105270.0,105260.0,0.0392]
[1749986089819,0.06917195,105270.0,105260.0,0.0392]
[1749986093219,0.06917195,105270.0,105260.0,0.0341]
[1749986094371,0.06917195,105270.0,105260.0,1e-08]
[1749986097880,0.07413705,105270.0,105260.0,1e-08]
[1749986105251,0.04253705,105270.0,105260.0,1e-08]
[1749986105462,0.04253705,105270.0,105250.0,0.10728936]
[1749986105920,0.01398505,105270.0,105250.0,0.10728936]
[1749986106139,0.028557,105260.0,105250.0,0.10728936]
[1749986106355,0.028557,105260.0,105250.0,0.0317]
[1749986106583,0.028557,105260.0,105250.0,0.0161]
[1749986106827,0.03595121,105260.0,105250.0,0.0161]
[1749986107255,0.03595121,105260.0,105250.0,0.0313]
[1749986108530,0.03595121,105260.0,105250.0,0.0323]
[1749986110087,0.03795121,105260.0,105250.0,0.0323]
[1749986110519,0.03795121,105260.0,105250.0,0.0313]
[1749986110990,0.03895121,105260.0,105250.0,0.0313]
[1749986111436,0.03795121,105260.0,105250.0,0.0313]
[1749986111646,0.03895121,105260.0,105250.0,0.0313]
[1749986113054,0.03895121,105260.0,105250.0,0.0161]
[1749986113979,0.03895121,105260.0,105250.0,0.0323]
[1749986114829,0.031557,105260.0,105250.0,0.0323]
[1749986116510,0.031557,105260.0,105250.0,0.0161]
[1749986117569,0.031557,105260.0,105250.0,0.0319]
[1749986124764,0.031557,105260.0,105250.0,0.0161]
[1749986129978,0.031557,105260.0,105250.0,0.0317]
[1749986132560,0.031557,105260.0,105250.0,0.0161]
[1749986135115,0.031557,105260.0,105250.0,0.0325]
[1749986145713,0.031557,105260.0,105250.0,0.0161]
[1749986145919,0.031557,105260.0,105240.0,0.0558]
[1749986146125,0.031557,105260.0,105240.0,0.0722]
[1749986146330,0.003,105260.0,105240.0,0.0722]
[1749986146564,0.003,105260.0,105250.0,0.0392]
[1749986146770,0.002,105260.0,105250.0,0.0392]
[1749986146975,0.59620957,105270.0,105250.0,0.0392]
[1749986147385,0.029558,105260.0,105250.0,0.0392]
[1749986148481,0.028558,105260.0,105250.0,0.0546]
[1749986148908,0.030558,105260.0,105250.0,0.0546]
[1749986149585,0.029558,105260.0,105250.0,0.0546]
[1749986149820,0.030558,105260.0,105250.0,0.0546]
[1749986151440,0.030558,105260.0,105250.0,0.0154]
[1749986151893,0.030558,105260.0,105240.0,0.0558]
[1749986152129,0.030558,105260.0,105240.0,0.0712]
[1749986152366,0.002,105260.0,105240.0,0.0712]
[1749986152580,0.028557,105250.0,105240.0,0.0712]
[1749986153474,0.05714107,105250.0,105240.0,0.0712]
[1749986154189,0.05714107,105250.0,105240.0,0.0722]
[1749986155509,0.05714107,105250.0,105240.0,0.0732]
[1749986158660,0.05714107,105250.0,105240.0,0.10161397]
[1749986158895,0.05714107,105250.0,105240.0,0.0732]
[1749986165984,0.05714107,105250.0,105240.0,0.16944176]
[1749986166215,0.05714107,105250.0,105240.0,0.20031937]
[1749986166431,0.05714107,105250.0,105240.0,0.197944]
[1749986166643,0.06295518,105250.0,105240.0,0.351344]
[1749986166856,0.05714107,105250.0,105240.0,0.351344]
[1749986181816,0.05714107,105250.0,105240.0,0.32284176]
[1749986193572,0.028557,105250.0,105240.0,0.32284176]
[1749986193790,0.028557,105250.0,105240.0,0.13024176]
[1749986194032,0.028557,105250.0,105240.0,0.32280176]
[1749986202232,0.001,105260.0,105240.0,0.32308194]
[1749986202469,0.001,105260.0,105250.0,0.12754176]
[1749986202681,0.029553,105260.0,105250.0,0.12754176]
[1749986202890,0.029553,105260.0,105250.0,0.30460176]
[1749986203308,0.029553,105260.0,105250.0,0.11204176]
[1749986203513,0.029553,105260.0,105250.0,0.30460176]
[1749986204105,0.030553,105260.0,105250.0,0.30460176]
[1749986204249,0.029553,105260.0,105250.0,0.28880176]
[1749986204605,0.030553,105260.0,105250.0,0.28880176]
[1749986205244,0.029553,105260.0,105250.0,0.28880176]
[1749986205623,0.030553,105260.0,105250.0,0.28880176]
[1749986207383,0.030553,105260.0,105250.0,0.09624176]
[1749986207667,0.060853,105260.0,105250.0,0.28880176]
[1749986207950,0.030553,105260.0,105230.0,0.10688936]
[1749986208169,0.030553,105260.0,105240.0,0.19256]
[1749986208388,0.002,105260.0,105240.0,0.19256]
[1749986208610,0.058858,105250.0,105240.0,0.03916]
[1749986208863,0.0649438,105250.0,105240.0,0.19256]
[1749986210813,0.0649438,105250.0,105240.0,0.19356]
[1749986211649,0.0649438,105250.0,105240.0,0.19456]
[1749986211882,0.0935974,105250.0,105240.0,0.19456]
[1749986214200,0.0935974,105250.0,105240.0,0.002]
[1749986214408,0.0935974,105250.0,105240.0,0.19456]
[1749986215012,0.0935974,105250.0,105240.0,0.19256]
[1749986215441,0.0955974,105250.0,105240.0,0.19256]
[1749986215794,0.0945974,105250.0,105240.0,0.19256]
[1749986216198,0.0955974,105250.0,105240.0,0.19256]
[1749986216616,0.0945974,105250.0,105240.0,0.19256]
[1749986216851,0.0955974,105250.0,105240.0,0.19256]
[1749986219628,0.0955974,105250.0,105240.0,0.03916]
[1749986219819,0.0955974,105250.0,105240.0,0.19256]
[1749986220984,0.0955974,105250.0,105230.0,0.09624176]
[1749986221231,0.0955974,105250.0,105240.0,0.03916]
[1749986221491,0.0670394,105250.0,105240.0,0.03916]
[1749986221784,0.0720045,105250.0,105240.0,0.03916]
[1749986222020,0.0710045,105250.0,105240.0,0.03916]
[1749986222292,0.34,105240.0,105230.0,0.28880176]
[1749986222506,0.0317,105240.0,105230.0,0.03916]
[1749986223130,0.060262,105240.0,105230.0,0.03916]
[1749986223544,0.060262,105240.0,105230.0,0.03920745]
[1749986223832,0.060262,105240.0,105230.0,0.04020745]
[1749986224715,0.060262,105240.0,105230.0,0.04120745]
[1749986227745,0.060262,105240.0,105230.0,0.07919168]
[1749986227952,0.060262,105240.0,105230.0,0.05902071]
[1749986228196,0.060262,105240.0,105230.0,0.04120745]
[1749986228402,0.060262,105240.0,105230.0,0.05902053]
[1749986228604,0.060262,105240.0,105230.0,0.05902045]
[1749986228805,0.060262,105240.0,105230.0,0.05904074]
[1749986229064,0.060262,105240.0,105230.0,0.0590408]
[1749986229270,0.060262,105240.0,105230.0,0.04120745]
[1749986229666,0.060262,105240.0,105230.0,0.05904104]
[1749986229892,0.060262,105240.0,105230.0,0.01988147]
[1749986230093,0.060262,105240.0,105230.0,0.05904169]
[1749986230299,0.060262,105240.0,105230.0,0.05904226]
[1749986231348,0.060262,105240.0,105230.0,0.05904574]
[1749986231559,0.060262,105240.0,105230.0,0.05904575]
[1749986231918,0.060262,105240.0,105230.0,0.04120745]
[1749986232127,0.060262,105240.0,105230.0,0.05904576]
[1749986232356,0.400262,105240.0,105230.0,0.05904576]
[1749986232734,0.400262,105240.0,105230.0,0.04120745]
[1749986232934,0.400262,105240.0,105230.0,0.05904576]
[1749986233500,0.060262,105240.0,105230.0,0.05904576]
[1749986235477,0.060262,105240.0,105230.0,0.04120745]
[1749986235691,0.060262,105240.0,105230.0,0.0590457]
[1749986236354,0.060262,105240.0,105230.0,0.04120745]
[1749986236769,0.060262,105240.0,105230.0,0.0590457]
[1749986237041,0.060262,105240.0,105230.0,0.04120745]
[1749986237454,0.060262,105240.0,105230.0,0.05904588]
[1749986237874,0.060262,105240.0,105230.0,0.05904589]
[1749986238089,0.060262,105240.0,105230.0,0.04120745]
[1749986238314,0.060262,105240.0,105230.0,0.0590459]
[1749986238662,0.060262,105240.0,105230.0,0.04120745]
[1749986238881,0.060262,105240.0,105230.0,0.05904591]
[1749986239286,0.060262,105240.0,105230.0,0.04120745]
[1749986239529,0.060262,105240.0,105230.0,0.05904602]
[1749986239729,0.060262,105240.0,105230.0,0.05904547]
[1749986239885,0.060262,105240.0,105230.0,0.01147857]
[1749986240089,0.060262,105240.0,105220.0,0.03916]
[1749986240292,0.060262,105240.0,105220.0,0.03920748]
[1749986240500,0.0317,105240.0,105220.0,0.03920748]
[1749986240706,0.028564,105230.0,105220.0,0.03920748]
[1749986240915,0.0663904,105230.0,105220.0,0.03920748]
[1749986241321,0.0713555,105230.0,105220.0,0.00104748]
[1749986241528,0.0713555,105230.0,105210.0,0.03889514]
[1749986241729,0.0318,105220.0,105210.0,0.03816]
[1749986241941,0.3718,105220.0,105210.0,0.03816]
[1749986242362,0.3718,105220.0,105200.0,0.32884]
[1749986242971,0.028568,105210.0,105200.0,0.33770701]
[1749986243510,0.028568,105210.0,105200.0,0.3377071]
[1749986243630,0.028568,105210.0,105200.0,0.32884]
[1749986243838,0.028568,105210.0,105200.0,0.3219071]
[1749986244242,0.030568,105210.0,105200.0,0.31304]
[1749986245662,0.031568,105210.0,105200.0,0.31304]
[1749986246736,0.04118427,105210.0,105200.0,0.31304]
[1749986250737,0.04118427,105210.0,105200.0,0.03916]
[1749986253776,0.04118427,105210.0,105200.0,0.05436]
[1749986256689,0.04614937,105210.0,105200.0,0.05436]
[1749986258730,0.04614937,105210.0,105200.0,0.03916]
[1749986264519,0.04614937,105210.0,105190.0,0.10708936]
[1749986264736,0.41764937,105210.0,105200.0,0.03928]
[1749986264982,0.38908137,105210.0,105200.0,0.03928]
[1749986265190,0.41765237,105210.0,105200.0,0.03928]
[1749986265399,0.41665237,105210.0,105200.0,0.03928]
[1749986266839,0.41765237,105210.0,105200.0,0.03928]
[1749986267513,0.41665237,105210.0,105200.0,0.03928]
[1749986267873,0.41765237,105210.0,105200.0,0.03928]
[1749986268855,0.41765237,105210.0,105200.0,0.04816847]
[1749986269481,0.41765237,105210.0,105200.0,0.03928]
[1749986269707,0.41765237,105210.0,105200.0,0.04816847]
[1749986269823,0.41765237,105210.0,105200.0,0.03928]
[1749986270482,0.41765237,105210.0,105200.0,0.0481685]
[1749986270678,0.44192268,105210.0,105190.0,0.05448]
[1749986270886,0.41765237,105210.0,105190.0,0.05448]
[1749986271059,0.38908137,105210.0,105190.0,0.05448]
[1749986271267,0.028572,105200.0,105190.0,0.05448]
[1749986272575,0.028572,105200.0,105190.0,0.05548]
[1749986276291,0.028572,105200.0,105190.0,0.07332335]
[1749986278480,0.028572,105200.0,105190.0,0.05548]
[1749986278692,0.028572,105200.0,105190.0,0.07329536]
[1749986280092,0.028572,105200.0,105190.0,0.08839536]
[1749986280356,0.028572,105200.0,105190.0,0.07058]
[1749986280567,0.028572,105200.0,105190.0,0.08839536]
[1749986280981,0.028572,105200.0,105190.0,0.07058]
[1749986281194,0.028572,105200.0,105190.0,0.08839536]
[1749986281927,0.028572,105200.0,105190.0,0.08839533]
[1749986282335,0.028572,105200.0,105190.0,0.07058]
[1749986282588,0.028572,105200.0,105190.0,0.08839528]
[1749986282808,0.028572,105200.0,105190.0,0.07058]
[1749986283246,0.028572,105200.0,105190.0,0.08839492]
[1749986283458,0.028572,105200.0,105190.0,0.04911483]
[1749986283673,0.028572,105200.0,105190.0,0.07058]
[1749986283888,0.028572,105200.0,105190.0,0.08839501]
[1749986284109,0.028572,105200.0,105190.0,0.08839505]
[1749986284548,0.028572,105200.0,105190.0,0.07058]
[1749986284744,0.028572,105200.0,105190.0,0.08839487]
[1749986284968,0.028572,105200.0,105190.0,0.08839485]
[1749986285174,0.028572,105200.0,105190.0,0.08839481]
[1749986285425,0.028572,105200.0,105190.0,0.08839483]
[1749986285894,0.028572,105200.0,105190.0,0.07058]
[1749986286125,0.028572,105200.0,105190.0,0.08839483]
[1749986286340,0.028572,105200.0,105190.0,0.0313]
[1749986286552,0.028572,105200.0,105190.0,0.07058]
[1749986287160,0.028572,105200.0,105190.0,0.08839492]
[1749986287374,0.028572,105200.0,105190.0,0.07058]
[1749986288039,0.028572,105200.0,105190.0,0.08839491]
[1749986288675,0.028572,105200.0,105190.0,0.08839493]
[1749986289115,0.028572,105200.0,105190.0,0.08839497]
[1749986289544,0.028572,105200.0,105190.0,0.08839496]
[1749986289726,0.028572,105200.0,105190.0,0.07058]
[1749986289947,0.028572,105200.0,105190.0,0.08839493]
[1749986290600,0.028572,105200.0,105190.0,0.08839501]
[1749986290822,0.028572,105200.0,105190.0,0.16919816]
[1749986291067,0.028572,105200.0,105190.0,0.18463635]
[1749986291275,0.028572,105200.0,105190.0,0.16682176]
[1749986291488,0.028572,105200.0,105190.0,0.18463626]
[1749986291707,0.028572,105200.0,105190.0,0.16682176]
[1749986291920,0.028572,105200.0,105190.0,0.18463637]
[1749986292163,0.028572,105200.0,105190.0,0.18463625]
[1749986292386,0.028572,105200.0,105190.0,0.1846361]
[1749986292808,0.028572,105200.0,105190.0,0.18466408]
[1749986293244,0.028572,105200.0,105190.0,0.18466406]
[1749986293736,0.028572,105200.0,105190.0,0.16682176]
[1749986299411,0.028572,105200.0,105190.0,0.16919816]
[1749986300092,0.028572,105200.0,105190.0,0.19765106]
[1749986300299,0.028572,105200.0,105190.0,0.19527466]
[1749986301210,0.01558137,105210.0,105200.0,0.0319]
[1749986301432,0.01558137,105210.0,105200.0,0.28170176]
[1749986301644,0.04414737,105210.0,105200.0,0.28170176]
[1749986302252,0.04314737,105210.0,105200.0,0.28170176]
[1749986303099,0.04414737,105210.0,105200.0,0.28170176]
[1749986303936,0.04514737,105210.0,105200.0,0.28170176]
[1749986304871,0.04514737,105210.0,105200.0,0.29951972]
[1749986305243,0.04514737,105210.0,105200.0,0.28170176]
[1749986305445,0.04514737,105210.0,105200.0,0.29951928]
[1749986305734,0.04514737,105210.0,105200.0,0.31842698]
[1749986305936,0.04514737,105210.0,105200.0,0.29951668]
[1749986306149,0.04514737,105210.0,105200.0,0.29951687]
[1749986306351,0.04514737,105210.0,105200.0,0.29951631]
[1749986306561,0.04514737,105210.0,105200.0,0.29951627]
[1749986306751,0.04514737,105210.0,105200.0,0.32796851]
[1749986306958,0.04514737,105210.0,105200.0,0.32796843]
[1749986307119,0.04514737,105210.0,105200.0,0.31015466]
[1749986307555,0.04514737,105210.0,105200.0,0.28170176]
[1749986307761,0.04514737,105210.0,105200.0,0.32796779]
[1749986307955,0.04514737,105210.0,105200.0,0.31015466]
[1749986308299,0.04514737,105210.0,105200.0,0.32796755]
[1749986308497,0.04514737,105210.0,105200.0,0.32798776]
[1749986308863,0.04514737,105210.0,105200.0,0.3279877]
[1749986309278,0.04514737,105210.0,105200.0,0.31015466]
[1749986309482,0.04514737,105210.0,105200.0,0.29953492]
[1749986309898,0.04514737,105210.0,105200.0,0.29953489]
[1749986310314,0.04514737,105210.0,105200.0,0.2995348]
[1749986310507,0.01658137,105210.0,105200.0,0.28170176]
[1749986310718,0.01658137,105210.0,105200.0,0.29953482]
[1749986311690,0.01658137,105210.0,105200.0,0.28170176]
[1749986311902,0.01658137,105210.0,105200.0,0.29953461]
[1749986312547,0.01658137,105210.0,105200.0,0.28170176]
[1749986312762,0.01658137,105210.0,105200.0,0.29953461]
[1749986312971,0.01658137,105210.0,105200.0,0.29953459]
[1749986313188,0.01658137,105210.0,105200.0,0.28170176]
[1749986314072,0.01658137,105210.0,105200.0,0.32090176]
[1749986314491,0.01658137,105210.0,105200.0,0.12814176]
[1749986314707,0.01658137,105210.0,105200.0,0.32090176]
[1749986317403,0.01658137,105210.0,105200.0,0.12814176]
[1749986317638,0.01658137,105210.0,105200.0,0.32094176]
[1749986318540,0.01658137,105210.0,105200.0,0.12814176]
[1749986318751,0.01658137,105210.0,105200.0,0.32094176]
[1749986323818,0.04514437,105210.0,105200.0,0.32094176]
[1749986325157,0.04514437,105210.0,105200.0,0.32090176]
[1749986325787,0.04514437,105210.0,105200.0,0.28162176]
[1749986326047,0.04514437,105210.0,105200.0,0.32082176]
[1749986326764,0.04514437,105210.0,105200.0,0.32078176]
[1749986328557,0.04514437,105210.0,105200.0,0.34925236]
[1749986328769,0.04514437,105210.0,105200.0,0.32078176]
[1749986329612,0.04514437,105210.0,105200.0,0.34925236]
[1749986336924,0.04514437,105210.0,105200.0,0.15661236]
[1749986337133,0.04514437,105210.0,105200.0,0.34925236]
[1749986338178,0.04514437,105210.0,105200.0,0.15661236]
[1749986338395,0.04514437,105210.0,105200.0,0.33375236]
[1749986338814,0.04514437,105210.0,105200.0,0.12471236]
[1749986339023,0.04514437,105210.0,105200.0,0.31735236]
[1749986339234,0.04514437,105210.0,105200.0,0.12471236]
[1749986339463,0.04514437,105210.0,105200.0,0.31735236]
[1749986348244,0.04514437,105210.0,105200.0,0.12471236]
[1749986348456,0.04514437,105210.0,105200.0,0.31735236]
[1749986348660,0.04514437,105210.0,105200.0,0.12471236]
[1749986348862,0.04514437,105210.0,105200.0,0.31735236]
[1749986352129,0.04514437,105210.0,105200.0,0.33375236]
[1749986356583,0.04514437,105210.0,105200.0,0.33380684]
[1749986359044,0.04514437,105210.0,105200.0,0.31740684]
[1749986364057,0.04514437,105210.0,105200.0,0.33290684]
[1749986364272,0.04514437,105210.0,105200.0,0.34880684]
[1749986364495,0.04514437,105210.0,105200.0,0.31740684]
[1749986378832,0.04514437,105210.0,105200.0,0.12476684]
[1749986379037,0.07674437,105210.0,105200.0,0.31740684]
[1749986379243,0.07674437,105210.0,105200.0,0.28888176]
[1749986379451,0.07674437,105210.0,105200.0,0.13544176]
[1749986379676,0.07674437,105210.0,105200.0,0.28888176]
[1749986379878,0.06084437,105210.0,105200.0,0.28888176]
[1749986381319,0.06084437,105210.0,105200.0,0.13544176]
[1749986381535,0.06084437,105210.0,105200.0,0.28888176]
[1749986383097,0.07674437,105210.0,105200.0,0.28888176]
[1749986387436,0.07674437,105210.0,105200.0,0.30671426]
[1749986387861,0.07674437,105210.0,105200.0,0.30671606]
[1749986388500,0.07674437,105210.0,105200.0,0.30671618]
[1749986388713,0.07674437,105210.0,105200.0,0.28888176]
[1749986388919,0.07674437,105210.0,105200.0,0.30671628]
[1749986389146,0.06084437,105210.0,105200.0,0.30671628]
[1749986389355,0.04514437,105210.0,105200.0,0.30671628]
[1749986389566,0.04514437,105210.0,105200.0,0.28888176]
[1749986389998,0.04514437,105210.0,105200.0,0.30671655]
[1749986390208,0.04514437,105210.0,105200.0,0.30671656]
[1749986390851,0.04514437,105210.0,105200.0,0.28888176]
[1749986391313,0.04514437,105210.0,105200.0,0.30671656]
[1749986391531,0.04514437,105210.0,105200.0,0.30671669]
[1749986391735,0.04514437,105210.0,105200.0,0.30671656]
[1749986391945,0.04514437,105210.0,105200.0,0.30671655]
[1749986392382,0.04514437,105210.0,105200.0,0.30671656]
[1749986393334,0.04514437,105210.0,105200.0,0.30671645]
[1749986393578,0.04514437,105210.0,105200.0,0.28888176]
[1749986393793,0.04514437,105210.0,105200.0,0.30671581]
[1749986394000,0.04514437,105210.0,105200.0,0.30671563]
[1749986394211,0.04514437,105210.0,105200.0,0.30671558]
[1749986394854,0.04514437,105210.0,105200.0,0.28888176]
[1749986395102,0.04514437,105210.0,105200.0,0.30671579]
[1749986395328,0.04514437,105210.0,105200.0,0.30671584]
[1749986395791,0.04514437,105210.0,105200.0,0.30671585]
[1749986396030,0.04514437,105210.0,105200.0,0.28888176]
[1749986396451,0.04514437,105210.0,105200.0,0.30671594]
[1749986396915,0.04514437,105210.0,105200.0,0.28888176]
[1749986397135,0.04514437,105210.0,105200.0,0.30671601]
[1749986397568,0.04514437,105210.0,105200.0,0.28888176]
[1749986397989,0.04514437,105210.0,105200.0,0.30671555]
[1749986398404,0.04514437,105210.0,105200.0,0.30671569]
[1749986398596,0.04514437,105210.0,105200.0,0.28888176]
[1749986398857,0.04514437,105210.0,105200.0,0.30671569]
[1749986399073,0.04514437,105210.0,105200.0,0.28888176]
[1749986399298,0.04514437,105210.0,105200.0,0.30671547]
[1749986399509,0.04514437,105210.0,105200.0,0.30671526]
[1749986399732,0.04514437,105210.0,105200.0,0.28888176]
[1749986407690,0.04514437,105210.0,105200.0,0.13544176]
[1749986407896,0.04514437,105210.0,105200.0,0.28888176]
[1749986408775,0.04017927,105210.0,105200.0,0.28888176]
[1749986412194,0.07207927,105210.0,105200.0,0.28888176]
[1749986412836,0.05627927,105210.0,105200.0,0.28888176]
[1749986415165,0.05627927,105210.0,105200.0,0.09624176]
[1749986415359,0.07207927,105210.0,105200.0,0.19264]
[1749986415982,0.07207927,105210.0,105200.0,0.1926]
[1749986420355,0.07207927,105210.0,105200.0,0.03916]
[1749986428459,0.07207927,105210.0,105200.0,0.05695554]
[1749986428684,0.07207927,105210.0,105200.0,0.05695564]
[1749986428904,0.07207927,105210.0,105200.0,0.05695649]
[1749986429118,0.07207927,105210.0,105200.0,0.03916]
[1749986429329,0.07207927,105210.0,105200.0,0.05695674]
[1749986429541,0.07207927,105210.0,105200.0,0.03916]
[1749986429751,0.07207927,105210.0,105200.0,0.05695682]
[1749986429960,0.07207927,105210.0,105200.0,0.03916]
[1749986430382,0.07207927,105210.0,105200.0,0.05695021]
[1749986430627,0.07207927,105210.0,105200.0,0.03916]
[1749986431050,0.07207927,105210.0,105200.0,0.01779014]
[1749986431290,0.07207927,105210.0,105190.0,0.0392]
[1749986431508,0.07147927,105210.0,105190.0,0.05699056]
[1749986431720,0.04291627,105210.0,105190.0,0.05699059]
[1749986431933,0.04291627,105210.0,105190.0,0.0392]
[1749986432143,0.028572,105200.0,105190.0,0.0392]
[1749986432354,0.03572083,105200.0,105190.0,0.05699066]
[1749986432577,0.03572083,105200.0,105190.0,0.0392]
[1749986432781,0.03572083,105200.0,105190.0,0.05699069]
[1749986433327,0.03572083,105200.0,105190.0,0.0392]
[1749986433761,0.03572083,105200.0,105190.0,0.05699069]
[1749986434226,0.03572083,105200.0,105190.0,0.05702874]
[1749986434659,0.03572083,105200.0,105190.0,0.0402]
[1749986434874,0.03572083,105200.0,105190.0,0.01882874]
[1749986435103,0.03572083,105200.0,105190.0,0.05802874]
[1749986435326,0.03572083,105200.0,105190.0,0.05802894]
[1749986435538,0.03572083,105200.0,105190.0,0.05802897]
[1749986435750,0.03572083,105200.0,105190.0,0.0402]
[1749986436002,0.03572083,105200.0,105190.0,0.05802897]
[1749986436200,0.03572083,105200.0,105190.0,0.0402]
[1749986436404,0.03572083,105200.0,105190.0,0.05802897]
[1749986436607,0.03572083,105200.0,105190.0,0.05802883]
[1749986436815,0.03572083,105200.0,105190.0,0.0402]
[1749986437232,0.03572083,105200.0,105190.0,0.05802875]
[1749986437917,0.03572083,105200.0,105190.0,0.0402]
[1749986438401,0.03572083,105200.0,105190.0,0.05802875]
[1749986438649,0.03572083,105200.0,105190.0,0.0402]
[1749986439316,0.03572083,105200.0,105190.0,0.05802994]
[1749986439521,0.03572083,105200.0,105190.0,0.0402]
[1749986439731,0.03572083,105200.0,105190.0,0.05802994]
[1749986439911,0.03572083,105200.0,105190.0,0.0402]
[1749986440128,0.03572083,105200.0,105190.0,0.05802994]
[1749986440342,0.03572083,105200.0,105190.0,0.0402]
[1749986440559,0.06692083,105200.0,105190.0,0.01882995]
[1749986440797,0.06692083,105200.0,105190.0,0.05803049]
[1749986441015,0.40692083,105200.0,105190.0,0.05803068]
[1749986441226,0.40692083,105200.0,105190.0,0.0402]
[1749986441440,0.40692083,105200.0,105190.0,0.05803078]
[1749986441658,0.40692083,105200.0,105190.0,0.05803077]
[1749986441897,0.40692083,105200.0,105190.0,0.0402]
[1749986442118,0.40692083,105200.0,105190.0,0.0580308]
[1749986442552,0.40692083,105200.0,105190.0,0.05803082]
[1749986443221,0.40692083,105200.0,105190.0,0.0402]
[1749986443428,0.40692083,105200.0,105190.0,0.05803082]
[1749986443845,0.40692083,105200.0,105190.0,0.0402]
[1749986444063,0.40692083,105200.0,105190.0,0.05803082]
[1749986445966,0.40692083,105200.0,105190.0,0.05803144]
[1749986446391,0.40792083,105200.0,105190.0,0.0402]
[1749986446613,0.40792083,105200.0,105190.0,0.05703162]
[1749986446820,0.40692083,105200.0,105190.0,0.05703165]
[1749986447056,0.40892083,105200.0,105190.0,0.0392]
[1749986447275,0.40992083,105200.0,105190.0,0.0392]
[1749986447691,0.40992083,105200.0,105190.0,0.05703193]
[1749986447907,0.40992083,105200.0,105190.0,0.0392]
[1749986448372,0.40992083,105200.0,105190.0,0.056992]
[1749986449001,0.40992083,105200.0,105190.0,0.0392]
[1749986449215,0.40992083,105200.0,105190.0,0.05699208]
[1749986449420,0.40992083,105200.0,105190.0,0.056992]
[1749986450063,0.40992083,105200.0,105190.0,0.0392]
[1749986450510,0.40992083,105200.0,105190.0,0.05699234]
[1749986450718,0.40992083,105200.0,105190.0,0.05699312]
[1749986450936,0.37872083,105200.0,105190.0,0.05699337]
[1749986451574,0.37872083,105200.0,105190.0,0.0392]
[1749986451995,0.37872083,105200.0,105190.0,0.05699276]
[1749986452220,0.37872083,105200.0,105190.0,0.0392]
[1749986452652,0.37872083,105200.0,105190.0,0.05699275]
[1749986452856,0.37872083,105200.0,105190.0,0.07239273]
[1749986453093,0.37872083,105200.0,105190.0,0.07239272]
[1749986453320,0.37872083,105200.0,105190.0,0.07239251]
[1749986453585,0.37872083,105200.0,105190.0,0.0546]
[1749986453799,0.37872083,105200.0,105190.0,0.03319251]
[1749986454007,0.37872083,105200.0,105190.0,0.07235291]
[1749986454214,0.37872083,105200.0,105190.0,0.05456]
[1749986454648,0.37872083,105200.0,105190.0,0.07239223]
[1749986454871,0.37872083,105200.0,105190.0,0.07239216]
[1749986455073,0.37872083,105200.0,105190.0,0.07239227]
[1749986455338,0.37872083,105200.0,105190.0,0.05456]
[1749986455569,0.37872083,105200.0,105190.0,0.07239228]
[1749986455781,0.37872083,105200.0,105190.0,0.07239181]
[1749986455993,0.37872083,105200.0,105190.0,0.05456]
[1749986456241,0.37872083,105200.0,105190.0,0.07239181]
[1749986457075,0.37872083,105200.0,105190.0,0.07239175]
[1749986457711,0.37872083,105200.0,105190.0,0.07239183]
[1749986458159,0.37872083,105200.0,105190.0,0.05456]
[1749986458383,0.37872083,105200.0,105190.0,0.07239183]
[1749986458830,0.37872083,105200.0,105190.0,0.05456]
[1749986459037,0.37872083,105200.0,105190.0,0.07239183]
[1749986459668,0.371572,105200.0,105190.0,0.08889183]
[1749986459938,0.371572,105200.0,105190.0,0.08889165]
[1749986460395,0.371572,105200.0,105190.0,0.08889114]
[1749986460865,0.371572,105200.0,105190.0,0.0888911]
[1749986461069,0.371572,105200.0,105190.0,0.08889112]
[1749986461691,0.371572,105200.0,105190.0,0.08889042]
[1749986462113,0.371572,105200.0,105190.0,0.08888989]
[1749986462329,0.371572,105200.0,105190.0,0.07106]
[1749986462538,0.371572,105200.0,105190.0,0.08888893]
[1749986462748,0.371572,105200.0,105190.0,0.07106]
[1749986462955,0.371572,105200.0,105190.0,0.08888449]
[1749986463200,0.371572,105200.0,105190.0,0.08888453]
[1749986463413,0.371572,105200.0,105190.0,0.07106]
[1749986463624,0.371572,105200.0,105190.0,0.08888386]
[1749986463801,0.371572,105200.0,105190.0,0.08888378]
[1749986464043,0.371572,105200.0,105190.0,0.08888371]
[1749986464251,0.371572,105200.0,105190.0,0.07106]
[1749986464676,0.371572,105200.0,105190.0,0.08888517]
[1749986464893,0.371572,105200.0,105190.0,0.07106]
[1749986465110,0.371572,105200.0,105190.0,0.08888477]
[1749986465317,0.371572,105200.0,105190.0,0.08888467]
[1749986465526,0.371572,105200.0,105190.0,0.07106]
[1749986465750,0.371572,105200.0,105190.0,0.08888425]
[1749986465977,0.371572,105200.0,105190.0,0.07106]
[1749986466186,0.371572,105200.0,105190.0,0.08888401]
[1749986466625,0.371572,105200.0,105190.0,0.07106]
[1749986466834,0.371572,105200.0,105190.0,0.08888383]
[1749986467037,0.371572,105200.0,105190.0,0.07106]
[1749986467688,0.031572,105200.0,105190.0,0.07106]
[1749986467897,0.031572,105200.0,105190.0,0.08886993]
[1749986468103,0.031572,105200.0,105190.0,0.07106]
[1749986468314,0.031572,105200.0,105190.0,0.08887007]